[Event "44th Chess Olympiad Women 2022"]
[Site "Chennai"]
[Date "2022.07.29"]
[Round "1.2"]
[White "Bouah, Denise"]
[Black "Osmak, Yuliia"]
[Result "0-1"]
[WhiteElo "1736"]
[BlackElo "2420"]
[Annotator "TA"]
[PlyCount "34"]
[EventDate "2022.??.??"]
[TimeControl "60"]

{[%evp 9,34,-5,40,7,4,0,-12,-10,-5,-12,-17,-61,-63,-67,-69,-110,-108,-118,-67,
-146,-116,-166,-162,-1226,-1205,-29994,-29995]} 1. e4 {[%emt 0:00:04]} c5 {
[%emt 0:00:05]} 2. Nc3 {[%emt 0:00:09]} Nc6 {[%emt 0:02:01]} 3. Bb5 {[%emt 0:
00:00]} e6 {[%emt 0:02:21]} 4. Bxc6 {[%emt 0:00:56]} bxc6 {[%emt 0:00:07]} 5.
Nf3 {[%emt 0:01:18]} d6 {[%emt 0:09:25]} 6. O-O {[%emt 0:01:08] B23: Closed
Sicilian: Lines without g3.} e5 {[%emt 0:00:18]} 7. h3 {[%emt 0:04:59] [#]} g5
$146 {[%emt 0:11:08]} ({Predecessor:} 7... Be7 8. d3 Bf6 9. Nh2 Rb8 10. Qe2 Ne7
11. Nd1 O-O 12. Ng4 Ng6 13. Nxf6+ Qxf6 {0-1 (21) Selmanaj,B-McAndrew,R (1986)
Skopje 2015}) 8. d3 {[%emt 0:23:26] The position is equal.} g4 {[%emt 0:04:55]}
9. hxg4 {[%emt 0:00:41]} Bxg4 {[%emt 0:00:05]} 10. Qe2 {[%emt 0:10:50]} h5 {
[%emt 0:06:17]} 11. Nd1 {[%emt 0:02:06]} Qf6 {[%emt 0:15:04]} 12. Ne3 {[%emt 0:
00:00]} Ne7 {[%emt 0:04:02][%cal Yg8e7,Ye7g6,Yg6h4,Yh4f5]} 13. c3 {[%emt 0:07:
02]} Rg8 {[%emt 0:06:44]} (13... Rb8 $17 14. Kh1 Bh6) 14. Kh1 {[%emt 0:07:01]}
(14. Nxg4 $15 hxg4 15. Nh2) 14... Ng6 {[%emt 0:07:32] [#] White must now
prevent ...Nf4.} 15. Nf5 {[%emt 0:11:32]} (15. Qd1 $17 {keeps fighting.}) 15...
Nh4 $19 {[%emt 0:11:06]} ({And not} 15... Bxf5 16. Bg5 Qe6 17. exf5 Qxf5 18.
Qe4 Qxe4 19. dxe4 $17) 16. d4 $2 {[%emt 0:08:15]} (16. N5xh4 Qxh4+ 17. Nxh4
Bxe2 18. Re1 Bxd3 19. Nf5) 16... Bxf3 {[%emt 0:02:16]} 17. gxf3 {[%emt 0:06:01]
} Nxf5 {[%emt 0:00:06] Weighted Error Value: White=1.20/Black=0.09 (flawless)}
0-1

[Event "44th Chess Olympiad Women 2022"]
[Site "Chennai"]
[Date "2022.07.29"]
[Round "1.2"]
[White "Buksa, Nataliya"]
[Black "Selkirk, Rebecca"]
[Result "1-0"]
[WhiteElo "2401"]
[BlackElo "1745"]
[Annotator "ChessBase"]
[PlyCount "81"]
[EventDate "2022.??.??"]
[TimeControl "60"]

1. e4 {[%emt 0:00:03]} c5 {[%emt 0:00:07]} 2. Nf3 {[%emt 0:00:07]} e6 {[%emt 0:
00:00]} 3. d4 {[%emt 0:00:03]} cxd4 {[%emt 0:00:05]} 4. Nxd4 {[%emt 0:00:03]}
a6 {[%emt 0:00:13]} 5. c4 {[%emt 0:00:04]} Nf6 {[%emt 0:00:13]} 6. Nc3 {
[%emt 0:00:05]} Qc7 {[%emt 0:00:17]} 7. a3 {[%emt 0:00:09]} b6 {[%emt 0:00:45]}
8. Be3 {[%emt 0:00:42]} Bb7 {[%emt 0:01:32]} 9. f3 {[%emt 0:00:05]} d6 {
[%emt 0:00:12]} 10. Be2 {[%emt 0:00:50]} Nbd7 {[%emt 0:00:24]} 11. Rc1 {
[%emt 0:02:25]} Be7 {[%emt 0:03:21]} 12. O-O {[%emt 0:01:07]} O-O {[%emt 0:00:
00]} 13. Qd2 {[%emt 0:01:48]} Rfe8 {[%emt 0:01:29]} 14. b4 {[%emt 0:00:29]}
Rac8 {[%emt 0:01:02]} 15. Na4 {[%emt 0:04:55]} Qb8 {[%emt 0:06:42]} 16. Kh1 {
[%emt 0:12:49]} d5 {[%emt 0:10:33]} 17. cxd5 {[%emt 0:13:08]} exd5 {[%emt 0:00:
00]} 18. Bf4 {[%emt 0:00:46]} Bd6 {[%emt 0:03:00]} 19. Bxd6 {[%emt 0:00:50]}
Qxd6 {[%emt 0:00:12]} 20. Nf5 {[%emt 0:00:02]} Qe5 {[%emt 0:02:52]} 21. Rxc8 {
[%emt 0:05:28]} Rxc8 {[%emt 0:04:11]} 22. Qg5 {[%emt 0:11:33]} g6 {[%emt 0:00:
00]} 23. Nxb6 {[%emt 0:00:29]} Re8 {[%emt 0:08:27]} 24. Nxd7 {[%emt 0:14:44]}
Nxd7 {[%emt 0:04:22]} 25. Qg3 {[%emt 0:07:00]} Qb2 {[%emt 0:06:59]} 26. Nd6 {
[%emt 0:03:23]} Rb8 {[%emt 0:05:03]} 27. Nxb7 {[%emt 0:00:10]} Qxe2 {[%emt 0:
00:00]} 28. Re1 {[%emt 0:00:03]} Qd2 {[%emt 0:02:09]} 29. Nc5 {[%emt 0:05:06]}
Rd8 {[%emt 0:01:04]} 30. Qh4 {[%emt 0:04:47]} f6 {[%emt 0:11:20]} 31. Nxd7 {
[%emt 0:03:33]} Rxd7 {[%emt 0:00:11]} 32. exd5 {[%emt 0:00:34]} Rxd5 {[%emt 0:
00:00]} 33. h3 {[%emt 0:00:04]} Rd4 {[%emt 0:10:10]} 34. Qg3 {[%emt 0:00:08]}
Qc3 {[%emt 0:01:14]} 35. Re7 {[%emt 0:01:25]} Rc4 {[%emt 0:02:56]} 36. Qd6 {
[%emt 0:01:28]} Rc8 {[%emt 0:02:07]} 37. Ra7 {[%emt 0:01:23]} f5 {[%emt 0:00:
00]} 38. Kh2 {[%emt 0:01:05]} Qe3 {[%emt 0:02:11]} 39. Re7 {[%emt 0:00:05]} Qc3
{[%emt 0:02:06]} 40. Qe6+ {[%emt 0:00:06]} Kh8 {[%emt 0:00:10]} 41. Qf7 {
[%emt 0:30:03]} 1-0

[Event "44th Chess Olympiad Women 2022"]
[Site "Chennai"]
[Date "2022.07.29"]
[Round "1.2"]
[White "Muzychuk, Anna"]
[Black "February, Jesse Nikki"]
[Result "1-0"]
[WhiteElo "2529"]
[BlackElo "1872"]
[Annotator "TA"]
[PlyCount "85"]
[EventDate "2022.??.??"]
[TimeControl "60"]

{[%evp 12,85,35,15,31,22,27,28,12,22,19,25,24,22,33,33,30,34,40,38,36,44,27,55,
52,45,56,57,64,77,63,59,164,168,211,191,221,202,242,230,241,236,288,295,533,
532,505,507,720,724,683,676,1311,1310,1310,1304,1260,1243,1192,1140,2339,2260,
1627,1322,12836,12836,12836,12836,12836,12836,12842,12836,12837,12837,12833,
2446]} 1. e4 {[%emt 0:00:03]} e6 {[%emt 0:00:19]} 2. d4 {[%emt 0:00:05]} d5 {
[%emt 0:00:14]} 3. Nc3 {[%emt 0:00:05]} dxe4 {[%emt 0:01:04]} 4. Nxe4 {[%emt 0:
00:00]} Nd7 {[%emt 0:00:47]} 5. Nf3 {[%emt 0:00:11]} Ngf6 {[%emt 0:00:27]} 6.
Nxf6+ {[%emt 0:00:14]} Nxf6 {[%emt 0:00:14]} 7. Be3 {[%emt 0:00:05] 7.c3 gains
popularity.} Nd5 {[%emt 0:02:50] C10: French with 3 Nc3: Unusual Black 3rd
moves and 3...dxe4.} 8. Bd2 {[%emt 0:00:25]} c5 {[%emt 0:01:54]} 9. Bb5+ {
[%emt 0:00:35]} Bd7 {[%emt 0:00:34] White has an edge.} 10. Bxd7+ {[%emt 0:00:
00]} Qxd7 {[%emt 0:00:11]} 11. c4 {[%emt 0:00:05] [#] Hoping for Ne5.} Nb6 {
[%emt 0:01:57][%csl Yc4,Yd4]} 12. Rc1 {[%emt 0:00:21]} Rc8 {[%emt 0:02:14]} 13.
dxc5 {[%emt 0:06:03]} Bxc5 {[%emt 0:00:26]} 14. b4 {[%emt 0:00:42]} Be7 {
[%emt 0:03:07]} 15. c5 {[%emt 0:00:41]} Nd5 {[%emt 0:01:51]} 16. Ne5 {[%emt 0:
00:00]} Qc7 {[%emt 0:05:37]} 17. Qa4+ {[%emt 0:00:15]} Kf8 {[%emt 0:01:01]} 18.
Nd3 {[%emt 0:04:14] [#]} f6 $146 {[%emt 0:04:33]} ({Predecessor:} 18... a6 19.
c6 f6 20. cxb7 Qxb7 21. Rxc8+ Qxc8 22. O-O Qc4 23. Qa3 Kf7 24. Rc1 Qb5 {
½-½ (58) Naiditsch,A (2685)-Grachev,B (2684) Sibenik 2009}) 19. Qxa7 {
[%emt 0:05:08]} Kf7 {[%emt 0:02:14]} 20. Qa3 {[%emt 0:00:35]} Rhd8 {[%emt 0:00:
00]} 21. O-O {[%emt 0:02:21]} e5 {[%emt 0:05:41] White leaves nothing to
chance now.} (21... Qd7 $14) 22. Qb3 $18 {[%emt 0:01:10]} Kf8 {[%emt 0:01:52]}
23. Rfd1 {[%emt 0:02:01]} e4 {[%emt 0:05:05]} 24. Nb2 {[%emt 0:01:34][%cal
Yd3b2,Yb2c4,Yc4b6,Yb6d7]} Nf4 {[%emt 0:02:19]} 25. Bxf4 {[%emt 0:00:00]} Qxf4 {
[%emt 0:00:24]} 26. g3 {[%emt 0:02:55]} Qg5 {[%emt 0:03:55]} 27. Nc4 {[%emt 0:
02:24] [#] Threatens to win with Nb6.} g6 $2 {[%emt 0:19:18]} (27... Rb8 {
keeps fighting.} 28. Nd6 Qg6) 28. Nb6 {[%emt 0:02:07] White is clearly winning.
} Rxd1+ {[%emt 0:02:06]} 29. Rxd1 {[%emt 0:00:09]} Rd8 {[%emt 0:01:35]} 30.
Nd7+ {[%emt 0:00:59]} Kg7 {[%emt 0:01:04]} 31. Qe6 $1 {[%emt 0:00:22][%csl Ye4,
Ye7]} f5 {[%emt 0:01:44]} 32. h4 {[%emt 0:01:14]} Qf6 {[%emt 0:01:17]} 33. Nxf6
{[%emt 0:01:43]} ({Less strong is} 33. Qxf6+ Bxf6 34. b5 Be7 $18) 33... Rxd1+ {
[%emt 0:00:10]} 34. Kg2 {[%emt 0:00:01]} Bxf6 {[%emt 0:00:14] Endgame KQ-KRB}
35. Qc8 {[%emt 0:00:10]} Rd2 {[%emt 0:02:48]} 36. Qxb7+ {[%emt 0:01:07]} Kh6 {
[%emt 0:00:14]} 37. Qb8 {[%emt 0:00:59] aiming for Qf4+.} Rxa2 {[%emt 0:08:22]}
38. Qf8+ {[%emt 0:00:35]} Bg7 {[%emt 0:02:04]} 39. Qd8 {[%emt 0:00:57][%csl
Gh4][%cal Rd8g5]} Bc3 {[%emt 0:00:00]} 40. c6 {[%emt 0:01:23] White threatens
c7 and mate.} Be1 {[%emt 0:04:25]} 41. Qg5+ {[%emt 0:31:23]} Kg7 {[%emt 0:30:
13]} 42. Qe3 {[%emt 0:00:13]} Bd2 {[%emt 0:00:00]} 43. Qd4+ {[%emt 0:00:19]
Weighted Error Value: White=0.02 (flawless) / Black=0.35} (43. Qb3 $142 Ra8 44.
Qb2+ Kg8 45. Qxd2) 1-0

[Event "44th Chess Olympiad Women 2022"]
[Site "Chennai"]
[Date "2022.07.29"]
[Round "1.3"]
[White "Arabidze, Meri"]
[Black "Al-Fayyadh, Yamama Asif Abdula"]
[Result "1-0"]
[WhiteElo "2426"]
[BlackElo "1666"]
[Annotator "TA"]
[PlyCount "51"]
[EventDate "2022.??.??"]
[TimeControl "60"]

{[%evp 21,51,35,41,0,73,70,89,81,94,62,114,113,93,112,134,106,113,100,188,172,
172,170,296,303,344,250,1740,1722,29996,29997,29998,29999]} 1. d4 {[%emt 0:00:
00]} d5 {[%emt 0:00:06]} 2. c4 {[%emt 0:00:07]} e6 {[%emt 0:00:06]} 3. Nc3 {
[%emt 0:00:13]} Nf6 {[%emt 0:00:08]} 4. cxd5 {[%emt 0:00:12]} exd5 {[%emt 0:00:
00]} 5. Bg5 {[%emt 0:00:17]} Be7 {[%emt 0:00:12]} 6. e3 {[%emt 0:00:15]} O-O {
[%emt 0:00:23]} 7. Bd3 {[%emt 0:00:55]} h6 {[%emt 0:00:59]} 8. Bf4 {[%emt 0:00:
00]} c6 {[%emt 0:03:58]} 9. h3 {[%emt 0:01:46]} Re8 {[%emt 0:02:53]} 10. Qc2 {
[%emt 0:02:08]} Nbd7 {[%emt 0:06:29][%cal Yb8d7,Yd7f8,Yf8e6]} 11. Nf3 {[%emt 0:
05:25]} Nf8 {[%emt 0:08:21]} 12. O-O-O {[%emt 0:04:23] D36: Queen's Gambit
Declined: Exchange Variation: Main line (5 Bg5 c6 6 Qc2).} b5 {[%emt 0:00:00]}
(12... Bb4 $11 {keeps the balance.}) 13. Kb1 $16 {[%emt 0:03:44] [#]} Bb7 $146
{[%emt 0:05:06]} ({Predecessor:} 13... a5 14. g4 b4 15. Na4 Ne4 16. Bxe4 dxe4
17. Qxe4 Be6 18. Qd3 Qd5 19. Nb6 Qxa2+ {½-½ (71) Sabrowski,U (1767) -Horn,S 
(1936) Playchess.com INT 2021}) 14. g4 {[%emt 0:07:43] White is better.} Ne6 {
[%emt 0:06:01]} 15. Be5 {[%emt 0:03:36]} a5 {[%emt 0:05:17]} (15... b4 $1 $14
16. Ne2 c5) 16. Rhg1 {[%emt 0:05:40] Strongly threatening g5.} Nd7 {[%emt 0:05:
06]} 17. Bh7+ {[%emt 0:04:20]} Kh8 {[%emt 0:02:16]} 18. Bf5 $1 {[%emt 0:00:10]
Threatens to win with Bxe6.0x0.0013b9bf2079dp-1022s more active pieces.} Ng5 {
[%emt 0:07:36]} 19. Nxg5 {[%emt 0:04:00]} Bxg5 {[%emt 0:00:00] [#]} (19... Nxe5
$16 20. Bd7 (20. dxe5 hxg5 21. Ne2 b4 $15) 20... Bxg5 21. Bxe8 Nf3 22. Bxf7
Nxg1 23. Rxg1 Qf6) 20. f4 $1 $18 {[%emt 0:08:34] Black must now prevent Bxd7.}
Nxe5 {[%emt 0:08:29]} 21. dxe5 {[%emt 0:00:46]} Be7 {[%emt 0:01:18] [#]} (21...
b4 {is a better defense.}) 22. g5 $1 {[%emt 0:10:51] aiming for gxh6.} hxg5 {
[%emt 0:05:25]} 23. h4 {[%emt 0:01:30][%cal Yh3h4,Yh4g5]} Qb6 $2 {[%emt 0:09:
28]} (23... g4 24. Rxg4 Bc8) 24. hxg5 {[%emt 0:02:34] Threatening mate with
Qh2+.} Qxe3 {[%emt 0:08:22]} 25. Qh2+ {[%emt 0:00:30]} Kg8 {[%emt 0:01:34]} 26.
Qh7+ {[%emt 0:00:09] White took control after the opening. Weighted Error
Value: White=0.05 (flawless) / Black=0.77} 1-0

[Event "44th Chess Olympiad Women 2022"]
[Site "Chennai"]
[Date "2022.07.29"]
[Round "1.3"]
[White "Javakhishvili, Lela"]
[Black "A-ALI, Sali Abbas Abdulzah"]
[Result "1-0"]
[WhiteElo "2476"]
[BlackElo "1864"]
[Annotator "ChessBase"]
[PlyCount "83"]
[EventDate "2022.??.??"]
[TimeControl "60"]

1. d4 {[%emt 0:00:04]} d5 {[%emt 0:00:07]} 2. c4 {[%emt 0:00:08]} e6 {[%emt 0:
00:00]} 3. Nf3 {[%emt 0:00:11]} Nf6 {[%emt 0:00:09]} 4. g3 {[%emt 0:00:09]} Be7
{[%emt 0:00:53]} 5. Bg2 {[%emt 0:00:08]} O-O {[%emt 0:00:14]} 6. O-O {[%emt 0:
00:00]} b6 {[%emt 0:00:52]} 7. cxd5 {[%emt 0:01:27]} exd5 {[%emt 0:00:31]} 8.
Nc3 {[%emt 0:00:23]} Bb7 {[%emt 0:03:35]} 9. Bf4 {[%emt 0:01:48]} c5 {[%emt 0:
00:00]} 10. Rc1 {[%emt 0:07:31]} Nc6 {[%emt 0:07:35]} 11. dxc5 {[%emt 0:03:00]}
Bxc5 {[%emt 0:02:00]} 12. a3 {[%emt 0:09:30]} h6 {[%emt 0:17:53]} 13. b4 {
[%emt 0:03:46]} Be7 {[%emt 0:01:18]} 14. Ne5 {[%emt 0:05:11]} Nxe5 {[%emt 0:00:
00]} 15. Bxe5 {[%emt 0:00:09]} Ne4 {[%emt 0:09:01]} 16. Nxe4 {[%emt 0:08:16]}
dxe4 {[%emt 0:00:07]} 17. Rc7 {[%emt 0:01:12]} Bd5 {[%emt 0:01:49]} 18. Qd4 {
[%emt 0:28:37]} Bd6 {[%emt 0:05:50]} 19. Bxg7 {[%emt 0:08:36]} Bxc7 {[%emt 0:
00:00]} 20. Bxf8 {[%emt 0:00:08]} Kxf8 {[%emt 0:00:33]} 21. Rd1 {[%emt 0:00:09]
} Qg5 {[%emt 0:05:25]} 22. h4 {[%emt 0:03:34]} Qg6 {[%emt 0:03:21]} 23. Qc3 {
[%emt 0:03:47]} Bc6 {[%emt 0:07:45]} 24. h5 {[%emt 0:06:04]} Qe6 {[%emt 0:00:
00]} 25. Rc1 {[%emt 0:02:02]} Rd8 {[%emt 0:02:35]} 26. Qxc6 {[%emt 0:00:19]}
Rd1+ {[%emt 0:00:14]} 27. Kh2 {[%emt 0:01:15]} Rxc1 {[%emt 0:00:29]} 28. Qxc1 {
[%emt 0:00:02]} Bd8 {[%emt 0:00:15]} 29. Qf4 {[%emt 0:03:00]} e3 {[%emt 0:00:
00]} 30. Bh3 {[%emt 0:00:33]} Bg5 {[%emt 0:01:59]} 31. Qxg5 {[%emt 0:00:46]}
hxg5 {[%emt 0:00:07]} 32. Bxe6 {[%emt 0:00:06]} fxe6 {[%emt 0:00:11]} 33. g4 {
[%emt 0:00:20]} exf2 {[%emt 0:00:19]} 34. Kg2 {[%emt 0:00:03]} Kg7 {[%emt 0:00:
00]} 35. Kxf2 {[%emt 0:00:06]} a6 {[%emt 0:00:15]} 36. Ke3 {[%emt 0:00:05]} Kf7
{[%emt 0:00:06]} 37. Ke4 {[%emt 0:00:08]} Kf6 {[%emt 0:00:05]} 38. Kd4 {
[%emt 0:00:06]} Kf7 {[%emt 0:00:32]} 39. Ke5 {[%emt 0:00:07]} Ke7 {[%emt 0:00:
00]} 40. a4 {[%emt 0:00:28]} b5 {[%emt 0:00:48]} 41. axb5 {[%emt 0:30:05]} axb5
{[%emt 0:30:06]} 42. e4 {[%emt 0:00:14]} 1-0

[Event "44th Chess Olympiad Women 2022"]
[Site "Chennai"]
[Date "2022.07.29"]
[Round "1.3"]
[White "Sara Masood Abdullah"]
[Black "Batsiashvili, Nino"]
[Result "0-1"]
[WhiteElo "1677"]
[BlackElo "2466"]
[Annotator "TA"]
[PlyCount "84"]
[EventDate "2022.??.??"]
[TimeControl "60"]

{[%evp 11,84,14,33,0,0,0,19,0,0,-14,0,-8,-5,-9,-13,-149,-149,-149,-149,-147,
-144,-150,-149,-150,-146,-150,-145,-150,-144,-142,-142,-152,-152,-151,-139,
-158,-156,-162,-157,-298,-291,-291,-283,-312,-318,-295,-273,-402,-402,-402,
-393,-390,-386,-378,-366,-656,-654,-604,-549,-691,-691,-1237,-1226,-5197,-4464,
-29957,-5622,-29969,-9875,-29975,-29976,-29972,-29974,-6115,-5193]} 1. e4 {
[%emt 0:00:03]} c6 {[%emt 0:00:34]} 2. d4 {[%emt 0:00:29]} d5 {[%emt 0:00:05]}
3. exd5 {[%emt 0:00:19]} cxd5 {[%emt 0:00:06]} 4. Bd3 {[%emt 0:00:26]} Nf6 {
[%emt 0:00:06]} 5. c3 {[%emt 0:00:45]} Bg4 {[%emt 0:00:37]} 6. Qb3 {[%emt 0:00:
00]} Qc7 {[%emt 0:00:33]} 7. Bg5 {[%emt 0:01:38] B13: Caro-Kann: Exchange
Variation and Panov-Botvinnik Attack.} e6 {[%emt 0:02:33]} 8. Nd2 {[%emt 0:00:
00][%cal Yg5f4]} Nc6 {[%emt 0:02:50]} 9. Ngf3 {[%emt 0:01:36] The position is
equal.} Bd6 {[%emt 0:00:19]} 10. O-O {[%emt 0:01:37]} O-O {[%emt 0:03:31]} 11.
Rae1 {[%emt 0:06:39]} Bh5 {[%emt 0:01:54][%cal Yg4h5,Yh5g6,Yg6c2,Yc2d3] [#]}
12. Qc2 $146 {[%emt 0:05:32]} ({Predecessor:} 12. Bxf6 gxf6 13. c4 Na5 14. Qa4
dxc4 15. Rc1 Rac8 16. b4 Nc6 17. Rxc4 {0-1 (28) Viaene,J (1846)-Peredy, F 
(2216) Brasschaat 2011}) 12... Bg6 {[%emt 0:01:29]} 13. g3 {[%emt 0:12:19] [#]
White is now going downhill.} (13. Bxg6 $11 {remains equal.} hxg6 14. g3) 13...
Nb4 $1 $17 14. cxb4 {[%emt 0:03:10] Black must now prevent Bxg6.} Qxc2 {
[%emt 0:06:35]} 15. Bxc2 {[%emt 0:00:03]} Bxc2 {[%emt 0:00:05]} 16. Rc1 {
[%emt 0:02:11]} Bd3 {[%emt 0:01:32] Black is more active.} 17. Rfe1 {[%emt 0:
01:23][%cal Yf1e1,Ye1e3,Ye3c3,Yc3c6]} Bxb4 {[%emt 0:00:44]} 18. Re3 {[%emt 0:
04:58] [#]} Ba6 {[%emt 0:01:20] A strong pair of Bishops.} 19. Bxf6 {[%emt 0:
04:17]} gxf6 {[%emt 0:00:07]} 20. a3 {[%emt 0:00:07]} Bd6 {[%emt 0:03:27]} 21.
Nb3 {[%emt 0:04:27]} Rac8 {[%emt 0:03:10]} 22. Rec3 {[%emt 0:02:24]} b6 {
[%emt 0:01:43]} 23. Rc6 {[%emt 0:04:56]} Rfd8 {[%emt 0:00:00]} 24. Nbd2 {
[%emt 0:08:21]} Kf8 {[%emt 0:04:25][%cal Yg8f8,Yf8e7,Ye7d7]} 25. b4 {[%emt 0:
06:33]} (25. Rxc8 $17 {might work better.} Rxc8 26. Rxc8+ Bxc8 27. Nb1) 25...
Rxc6 {[%emt 0:01:03]} 26. Rxc6 {[%emt 0:00:09]} Ke7 {[%emt 0:00:21]} 27. Kg2 {
[%emt 0:03:11]} Kd7 {[%emt 0:02:45]} 28. Rc3 {[%emt 0:00:00]} Rc8 {[%emt 0:00:
16]} 29. Nb1 {[%emt 0:02:54]} (29. Rxc8 $142 Bxc8 30. Nb1) 29... Rxc3 $19 {
[%emt 0:05:25]} 30. Nxc3 {[%emt 0:00:05] Endgame KBB-KNN} Bc4 {[%emt 0:00:18]}
31. Nd2 {[%emt 0:05:02]} a5 {[%emt 0:00:00]} 32. bxa5 {[%emt 0:05:18]} bxa5 {
[%emt 0:00:33]} 33. Ndb1 {[%emt 0:02:46]} (33. Ncb1 Bd3 34. Kf3) 33... e5 {
[%emt 0:02:25]} 34. dxe5 {[%emt 0:02:39]} fxe5 {[%emt 0:00:07] ...Bd3 is the
strong threat.} 35. f3 {[%emt 0:00:35]} f5 {[%emt 0:04:42]} 36. a4 {[%emt 0:02:
49]} d4 {[%emt 0:00:54]} 37. Nb5 {[%emt 0:00:00]} Bxb5 {[%emt 0:02:56]} 38.
axb5 {[%emt 0:00:07]} Bb4 {[%emt 0:00:15]} 39. Kf2 {[%emt 0:00:52]} a4 {
[%emt 0:00:09] ( -> ...a3)} 40. Ke2 {[%emt 0:00:00]} a3 {[%emt 0:00:09]} 41.
Nxa3 {[%emt 0:30:03]} Bxa3 {[%emt 0:30:07]} 42. Kd3 {[%emt 0:00:11]} Kc7 {
[%emt 0:00:45] Weighted Error Value: White=1.18/ Black=0.02 (flawless)} 0-1

[Event "44th Chess Olympiad Women 2022"]
[Site "Chennai"]
[Date "2022.07.29"]
[Round "1.3"]
[White "Tiba, Mahdi Attiyah"]
[Black "Melia, Salome"]
[Result "0-1"]
[WhiteElo "1759"]
[BlackElo "2384"]
[Annotator "TA"]
[PlyCount "84"]
[EventDate "2022.??.??"]
[TimeControl "60"]

{[%evp 9,84,23,20,25,13,13,6,0,1,0,0,11,10,2,6,0,7,0,1,0,5,0,0,-12,-20,-12,-19,
-93,-88,-83,-43,-87,-36,-42,-47,-66,-87,-79,-69,-289,-293,-287,-286,-379,-375,
-383,-386,-374,-359,-425,-420,-417,-417,-418,-417,-417,-407,-407,-407,-609,
-584,-576,-481,-481,-478,-726,-714,-806,-795,-1303,-1149,-1461,-1508,-5999,
-5728,-6095,-1337]} 1. e4 {[%emt 0:00:13]} c5 {[%emt 0:00:06]} 2. c3 {[%emt 0:
00:00]} d5 {[%emt 0:00:32]} 3. exd5 {[%emt 0:00:15]} Qxd5 {[%emt 0:00:11]} 4.
d4 {[%emt 0:00:30]} Nc6 {[%emt 0:01:00]} 5. Nf3 {[%emt 0:00:51]} Bf5 {[%emt 0:
00:00]} 6. Be2 {[%emt 0:02:11] B22: Sicilian: 2 c3.} cxd4 {[%emt 0:00:31]} 7.
cxd4 {[%emt 0:00:45] Nc3 is the strong threat.} e6 {[%emt 0:00:12]} 8. O-O {
[%emt 0:01:09] The position is equal.} Nf6 {[%emt 0:01:09]} 9. Nc3 {[%emt 0:00:
00]} Qa5 {[%emt 0:00:18]} 10. Be3 {[%emt 0:02:58]} Bb4 {[%emt 0:03:05]} 11. Qb3
{[%emt 0:02:42]} O-O {[%emt 0:00:59] [#]} 12. h3 $146 {[%emt 0:02:01]} ({
Predecessor:} 12. a3 Bxc3 13. bxc3 Qc7 14. c4 Rfd8 15. Rfd1 Rac8 16. Rac1 Ng4
17. h3 Na5 18. Qc3 {0-1 (60) Kubik,R (1761)-Sowinski,P (2006) Lublin 2021})
12... h6 {[%emt 0:05:33]} 13. Rac1 {[%emt 0:09:47]} Rfd8 {[%emt 0:04:12]} 14.
Rfd1 {[%emt 0:04:09]} Rac8 {[%emt 0:11:18]} 15. a3 {[%emt 0:12:34] Threatens
to win with d5.} Bxc3 {[%emt 0:00:59]} 16. Rxc3 {[%emt 0:00:56]} Be4 {[%emt 0:
00:00]} 17. Rdc1 {[%emt 0:10:45]} Bd5 {[%emt 0:13:59]} 18. Qd1 {[%emt 0:08:18]}
(18. Qxb7 $11 Nxd4 19. Qa6 Qxa6 20. Bxa6 Rxc3 21. Rxc3 Nxf3+ 22. gxf3) 18...
Ne4 $17 {[%emt 0:05:59]} 19. Rd3 {[%emt 0:00:52]} Qb6 {[%emt 0:06:38]} 20. b4 {
[%emt 0:14:07] [#]} a5 {[%emt 0:04:49]} ({Better is} 20... Ne7 $1 $17) 21. bxa5
$15 {[%emt 0:12:19]} Nxa5 {[%emt 0:03:16][%cal Yc6a5,Ya5c4,Yc4a3,Ya3c2]} 22.
Rb1 {[%emt 0:03:05]} Qd6 {[%emt 0:05:51] 0x0.00168754932ddp-1022s more active
pieces.} 23. Bd2 {[%emt 0:01:53]} Nxd2 {[%emt 0:01:48]} 24. Qxd2 {[%emt 0:01:
56] This costs White the game.} (24. Nxd2 $15 Nc6 25. Rxb7) 24... Nc4 $1 $19 {
[%emt 0:01:41][%csl Ya3,Yd2]} 25. Qb4 {[%emt 0:00:34][%cal Yf3e5]} Be4 {
[%emt 0:01:23][%cal Yc4a3]} 26. Qb3 {[%emt 0:05:42] [#]} Nxa3 $1 {[%emt 0:07:
40]} 27. Ra1 {[%emt 0:01:48]} Nc2 {[%emt 0:00:38]} 28. Rad1 {[%emt 0:01:02]}
Bxd3 {[%emt 0:01:53]} 29. Rxd3 {[%emt 0:00:19]} Qb4 {[%emt 0:02:50]} 30. Qxb4 {
[%emt 0:00:38]} Nxb4 {[%emt 0:00:08]} 31. Rb3 {[%emt 0:00:09]} Nc6 {[%emt 0:01:
08]} 32. Rxb7 {[%emt 0:00:58]} Nxd4 {[%emt 0:00:00]} 33. Nxd4 {[%emt 0:00:15]}
Rxd4 {[%emt 0:00:05] Endgame KRR-KRB} 34. Bh5 {[%emt 0:00:44]} (34. Rb2 $142)
34... g6 {[%emt 0:00:24] Black is clearly winning.} 35. Bf3 {[%emt 0:00:02]}
Rd2 {[%emt 0:03:33] Inhibits Rb2.} 36. Rb1 {[%emt 0:00:57]} Rcc2 {[%emt 0:00:
22]} 37. Rf1 {[%emt 0:00:00]} (37. Bd1 $142 Rb2 38. Rxb2 Rxb2 39. Bf3) 37... f5
{[%emt 0:00:52]} 38. h4 {[%emt 0:00:57]} h5 {[%emt 0:01:02]} 39. g3 {[%emt 0:
00:32]} e5 {[%emt 0:00:00]} 40. Bb7 {[%emt 0:00:25]} e4 {[%emt 0:00:46] And
now ...Kg7 would win.} 41. Ba6 {[%emt 0:30:08]} e3 {[%emt 0:31:10] Hoping for .
..Kg7.} 42. Bb5 {[%emt 0:00:00]} e2 {[%emt 0:00:00] Weighted Error Value:
White=0.58/Black=0.06 (flawless)} (42... Rxf2 $142 43. Ra1 Rg2+ 44. Kh1 Rxg3)
0-1